bitfinex/quotes_SOLUSD_20240628
["timestamp","ask_amount","ask_price","bid_price","bid_amount"]
[1719563694226,12.41087364,145.44,145.41,6.877]
[1719563694449,6.8752,145.45,145.41,6.877]
[1719563694654,12.4108864,145.44,145.41,6.877]
[1719563694854,6.8752,145.45,145.41,6.877]
[1719563695058,12.4108864,145.44,145.41,6.877]
[1719563695233,6.8752,145.45,145.41,6.877]
[1719563695644,12.41102711,145.44,145.41,6.877]
[1719563695951,6.8752,145.45,145.41,6.877]
[1719563696152,12.41101501,145.44,145.41,6.877]
[1719563696360,6.8752,145.45,145.41,6.877]
[1719563696562,12.41115573,145.44,145.41,6.877]
[1719563696767,6.8757,145.44,145.39,6.8776]
[1719563697071,6.8753,145.45,145.4,6.8774]
[1719563697369,6.4238,145.48,145.41,6.8769]
[1719563697541,12.41080065,145.47,145.41,6.8769]
[1719563697744,12.41079406,145.46,145.41,6.8769]
[1719563697976,19.28599406,145.45,145.41,6.8769]
[1719563698273,12.41079406,145.44,145.4,6.8774]
[1719563700070,19.28659406,145.44,145.4,6.8774]
[1719563700270,6.8758,145.44,145.4,6.8774]
[1719563700645,6.4238,145.48,145.34,0.8330381]
[1719563700646,6.4238,145.48,145.37,6.8789]
[1719563700855,6.4238,145.48,145.34,17.2195381]
[1719563700856,6.8771,145.41,145.34,17.2195381]
[1719563701370,6.8766,145.42,145.37,6.8789]
[1719563705563,6.8771,145.41,145.37,6.8789]
[1719563705755,6.8771,145.41,145.36,6.8792]
[1719563707368,6.7771,145.41,145.36,6.8792]
[1719563709771,12.41446137,145.4,145.34,24.0998381]
[1719563710068,6.8782,145.39,145.34,24.0997381]
[1719563710273,6.8776,145.4,145.35,6.8796]
[1719563710649,6.8776,145.4,145.36,15.94]
[1719563713276,6.8781,145.39,145.36,15.94]
[1719563715064,6.5758,145.43,145.36,15.94]
[1719563715272,6.5758,145.43,145.34,17.2195381]
[1719563715273,6.8767,145.42,145.39,15.94]
[1719563716374,6.8771,145.41,145.39,15.94]
[1719563716569,6.8767,145.42,145.39,15.94]
[1719563717075,6.0235,145.47,145.4,15.94]
[1719563717286,6.8762,145.43,145.4,15.94]
[1719563717590,6.8766,145.42,145.4,15.94]
[1719563718956,6.8766,145.42,145.39,15.94]
[1719563719758,6.8785,145.38,145.34,17.2195381]
[1719563719964,6.8785,145.38,145.35,15.94]
[1719563720274,6.8781,145.39,145.35,15.94]
[1719563720676,6.8781,145.39,145.35,22.8198]
[1719563720882,6.8781,145.39,145.35,15.94]
[1719563721681,6.8781,145.39,145.35,22.8198]
[1719563722186,6.8781,145.39,145.36,15.94]
[1719563723373,6.8777,145.4,145.36,15.94]
[1719563723776,6.8777,145.4,145.37,15.94]
[1719563724359,3.60635048,145.45,145.39,15.94]
[1719563724360,6.8762,145.43,145.39,15.94]
[1719563724560,6.8762,145.43,145.39,22.818]
[1719563724881,9.62985048,145.47,145.39,22.818]
[1719563724882,6.876,145.44,145.39,22.818]
[1719563725178,12.41221503,145.43,145.39,22.818]
[1719563725370,6.876,145.44,145.4,15.94]
[1719563725573,12.41213595,145.43,145.4,22.8174]
[1719563725888,6.876,145.44,145.4,22.8174]
[1719563726083,12.41196217,145.43,145.4,22.8174]
[1719563726272,6.876,145.44,145.4,22.8174]
[1719563726473,12.41196217,145.43,145.4,22.8174]
[1719563726782,6.876,145.44,145.4,22.8174]
[1719563726983,12.41184561,145.43,145.4,22.8174]
[1719563727180,6.876,145.44,145.4,22.8174]
[1719563727381,19.46055048,145.48,145.42,6.8766]
[1719563727382,12.41184781,145.43,145.42,6.8766]
[1719563727571,15.94,145.49,145.42,22.8166]
[1719563727763,6.8743,145.47,145.42,6.8766]
[1719563728074,19.28460406,145.46,145.43,15.94]
[1719563728282,6.8743,145.47,145.43,15.94]
[1719563728478,6.8747,145.46,145.44,15.94]
[1719563728792,6.8747,145.46,145.43,15.94]
[1719563729273,6.8743,145.47,145.43,15.94]
[1719563729660,6.8748,145.46,145.43,15.94]
[1719563733086,6.8748,145.46,145.42,15.94]
[1719563733575,6.8748,145.46,145.42,22.8165]
[1719563734366,6.8743,145.47,145.42,22.8165]
[1719563734689,12.40940682,145.46,145.42,22.8165]
[1719563734880,6.8743,145.47,145.42,22.8165]
[1719563735064,6.8748,145.46,145.42,22.8165]
[1719563735789,6.8742,145.48,145.44,15.94]
[1719563736088,12.40881228,145.47,145.44,15.94]
[1719563736384,6.8742,145.48,145.44,15.94]
[1719563736573,12.40881448,145.47,145.44,15.94]
[1719563736772,6.8742,145.48,145.44,15.94]
[1719563736977,12.40880018,145.47,145.44,15.94]
[1719563737172,257.98690382,145.52,145.45,15.94]
[1719563737378,12.4087997,145.51,145.48,15.94]
[1719563737573,12.4087997,145.5,145.48,15.94]
[1719563737772,15.94,145.53,145.48,15.94]
[1719563737971,12.40648253,145.52,145.48,15.94]
[1719563738171,19.27888253,145.51,145.48,15.94]
[1719563738371,12.40659497,145.5,145.48,15.94]
[1719563738575,6.8724,145.51,145.48,15.94]
[1719563739873,6.8728,145.5,145.46,6.8746]
[1719563740072,6.8728,145.5,145.47,15.94]
[1719563742690,6.8728,145.5,145.46,15.94]
[1719563743269,6.8728,145.5,145.46,22.8146]
[1719563743475,6.8724,145.51,145.47,15.94]
[1719563748819,15.94,145.52,145.44,28.3908]
[1719563749008,6.8733,145.49,145.46,15.94]
[1719563752790,6.8729,145.5,145.46,15.94]
[1719563753513,6.8733,145.49,145.46,15.94]
[1719563753716,6.8741,145.48,145.44,15.94]
[1719563753916,6.8734,145.49,145.44,22.8156]
[1719563754289,6.8734,145.49,145.45,22.815]
[1719563756012,6.8734,145.49,145.45,15.94]
[1719563757485,6.8734,145.49,145.44,6.8755]
[1719563757690,15.94,145.5,145.45,15.94]
[1719563760810,16.3995,145.51,145.45,15.94]
[1719563761002,15.94,145.5,145.45,22.8151]
[1719563762614,16.3995,145.51,145.45,22.8151]
[1719563762809,15.4584,145.55,145.46,15.94]
[1719563762987,28.34567574,145.54,145.48,15.94]
[1719563763192,12.40567574,145.53,145.48,15.94]
[1719563763422,15.94,145.54,145.48,22.8137]
[1719563763593,12.4053045,145.53,145.48,22.8137]
[1719563763795,15.94,145.54,145.48,22.8137]
[1719563764115,12.40501678,145.53,145.48,22.8137]
[1719563764312,15.94,145.54,145.48,15.94]
[1719563764512,12.4050025,145.53,145.48,15.94]
[1719563764704,15.4584,145.55,145.48,15.94]
[1719563764907,28.34499041,145.54,145.48,15.94]
[1719563765210,15.94,145.54,145.48,15.94]
[1719563765618,15.4584,145.55,145.45,15.7417]
[1719563765828,15.94,145.51,145.46,15.94]
[1719563766734,15.94,145.51,145.45,22.6168]
[1719563767021,15.94,145.51,145.45,38.5568]
[1719563767518,15.94,145.49,145.41,15.8966]
[1719563767825,15.94,145.48,145.43,6.876]
[1719563768227,15.94,145.48,145.42,22.8164]
[1719563768404,15.94,145.47,145.41,15.8966]
[1719563768598,15.94,145.47,145.42,15.94]
[1719563769418,15.9129,145.5,145.37,15.0384]
[1719563769597,15.9129,145.5,145.39,15.94]
[1719563769598,15.94,145.44,145.39,15.94]
[1719563769798,15.94,145.44,145.39,22.818]
[1719563770002,100.0,145.49,145.39,6.8779]
[1719563770312,15.94,145.45,145.4,6.8775]
[1719563770609,28.35110126,145.44,145.4,6.8775]
[1719563770824,15.94,145.45,145.4,6.8775]
[1719563770999,12.41117456,145.44,145.4,6.8775]
[1719563771198,15.94,145.45,145.4,6.8775]
[1719563771399,12.41117236,145.44,145.41,22.817]
[1719563771599,15.9129,145.5,145.42,15.94]
[1719563771822,28.34961377,145.49,145.43,15.94]
[1719563772112,12.40961377,145.48,145.43,15.94]
[1719563772300,12.40961377,145.47,145.43,22.816]
[1719563772501,15.94,145.49,145.43,22.816]
[1719563772701,28.34923336,145.48,145.43,15.94]
[1719563772895,12.40923336,145.47,145.43,15.94]
[1719563773096,15.94,145.47,145.37,15.0384]
[1719563773405,12.40950372,145.46,145.42,15.94]
[1719563773724,15.9129,145.5,145.43,15.94]
[1719563774021,28.34866528,145.49,145.43,15.94]
[1719563774236,12.40866528,145.48,145.43,15.94]
[1719563774798,12.40895867,145.47,145.43,22.816]
[1719563775135,15.94,145.49,145.43,22.816]
[1719563775418,12.40822789,145.48,145.43,22.816]
[1719563775717,12.40822789,145.47,145.43,22.816]
[1719563775920,12.40822789,145.48,145.43,15.94]
[1719563776614,12.40822789,145.49,145.44,22.0771]
[1719563776924,22.07966746,145.52,145.44,22.0771]
[1719563776925,15.94,145.51,145.46,15.94]
[1719563777420,12.40664287,145.5,145.46,15.94]
[1719563777812,12.40664287,145.49,145.46,15.94]
[1719563778006,15.94,145.51,145.46,15.94]
[1719563778321,12.40664287,145.5,145.46,15.94]
[1719563778500,12.40664287,145.49,145.46,15.94]
[1719563778701,269.46225334,145.53,145.45,15.94]
[1719563778915,15.94,145.51,145.45,15.94]
[1719563779118,12.4068916,145.5,145.45,15.94]
[1719563779720,12.4068916,145.5,145.44,22.0775]
[1719563779907,12.4068916,145.5,145.46,15.94]
[1719563781224,12.40661039,145.49,145.46,15.94]
[1719563781425,269.46225334,145.53,145.46,15.94]
[1719563781749,15.94,145.51,145.46,15.94]
[1719563781927,12.4063325,145.5,145.44,22.0774]
[1719563782229,12.4063325,145.5,145.46,15.94]
[1719563783119,12.4063325,145.49,145.46,15.94]
[1719563783327,15.94,145.51,145.46,15.94]
[1719563783610,12.4068938,145.5,145.46,15.94]
[1719563783915,15.94,145.52,145.46,15.94]
[1719563784124,12.40602315,145.51,145.46,15.94]
[1719563784335,12.40602095,145.5,145.46,15.94]
[1719563784626,12.40603743,145.49,145.46,15.94]
[1719563784826,15.94,145.52,145.46,15.94]
[1719563785038,12.40603963,145.51,145.46,15.94]
[1719563785218,12.40603963,145.5,145.46,15.94]
[1719563785415,12.40603963,145.49,145.47,15.94]
[1719563785622,15.94,145.52,145.47,15.94]
[1719563785936,12.40603084,145.51,145.47,15.94]
[1719563786113,12.40603084,145.5,145.47,15.94]
[1719563786312,12.40603084,145.51,145.47,15.94]
[1719563786811,12.40603084,145.51,145.46,15.94]
[1719563787535,12.40617802,145.5,145.47,15.94]
[1719563787735,12.40617802,145.49,145.45,6.8751]
[1719563787942,28.34617802,145.52,145.47,15.94]
[1719563788158,12.40617802,145.51,145.47,15.94]
[1719563788433,12.40617802,145.51,145.49,15.94]
[1719563788620,15.94,145.55,145.49,15.94]
[1719563788824,12.40474226,145.54,145.49,15.94]
[1719563789029,12.40474226,145.53,145.49,15.94]
[1719563789244,12.40474226,145.52,145.49,15.94]
[1719563789429,12.40474226,145.51,145.49,15.94]
[1719563789630,15.94,145.55,145.49,15.94]
[1719563789939,12.40462041,145.54,145.49,15.94]
[1719563790131,12.40462041,145.53,145.49,15.94]
[1719563790333,12.40462041,145.52,145.49,15.94]
[1719563790525,12.40462041,145.51,145.49,15.94]
[1719563790728,15.94,145.55,145.49,15.94]
[1719563790919,12.40454025,145.54,145.49,15.94]
[1719563791119,12.40454025,145.53,145.49,15.94]
[1719563791314,12.40454025,145.52,145.49,15.94]
[1719563791516,28.34454025,145.54,145.49,15.94]
[1719563791743,15.94,145.52,145.44,22.0771]
[1719563792044,12.40454025,145.51,145.46,15.94]
[1719563792538,15.94,145.49,145.44,15.2019]
[1719563792841,12.40454025,145.48,145.44,31.1419]
[1719563793436,12.40454025,145.49,145.44,31.1419]
[1719563793643,12.40757553,145.48,145.44,31.1419]
[1719563794032,15.94,145.49,145.44,31.1419]
[1719563794217,28.34757773,145.48,145.42,22.8165]
[1719563794423,6.0501,145.51,145.4,15.1909]
[1719563794648,15.94,145.45,145.4,31.1309]
[1719563794941,15.94,145.45,145.4,15.1909]
[1719563795115,12.41060011,145.44,145.4,15.1909]
[1719563795321,15.94,145.45,145.4,31.1309]
[1719563795622,12.41071589,145.44,145.4,31.1309]
[1719563795821,15.94,145.45,145.4,31.1309]
[1719563796023,12.41079017,145.44,145.4,31.1309]
[1719563796234,15.94,145.45,145.4,38.0084]
[1719563796443,12.41125467,145.44,145.4,38.0084]
[1719563796641,15.94,145.46,145.4,38.0084]
[1719563796824,12.41118321,145.45,145.4,38.0084]
[1719563797021,12.41053799,145.44,145.42,15.94]
[1719563797240,15.94,145.48,145.42,22.8165]
[1719563797435,12.41015617,145.47,145.42,22.8165]
[1719563797746,12.41015617,145.46,145.42,22.8165]
[1719563797929,15.94,145.48,145.42,22.8165]
[1719563798131,12.40988029,145.47,145.42,22.8165]
[1719563798331,15.94,145.48,145.42,22.8165]
[1719563798332,12.40988029,145.46,145.42,22.8165]
[1719563798531,15.94,145.48,145.43,15.94]
[1719563798731,12.40988029,145.47,145.43,15.94]
[1719563799039,9.64533135,145.51,145.43,15.94]
[1719563799238,15.94,145.48,145.43,15.94]
[1719563799426,12.40930994,145.47,145.43,15.94]
[1719563799743,15.94,145.48,145.43,15.94]
[1719563799924,12.40901569,145.47,145.43,15.94]
[1719563800120,15.94,145.48,145.43,15.94]
[1719563800333,12.4093014,145.47,145.4,22.0683]
[1719563800645,12.4093014,145.46,145.4,22.0683]
[1719563800842,12.4093014,145.47,145.4,22.0683]
[1719563801343,12.4093014,145.47,145.4,15.1909]
[1719563801521,15.94,145.49,145.43,6.8761]
[1719563801728,15.94,145.49,145.44,15.94]
[1719563802042,12.40798663,145.48,145.44,15.94]
[1719563802234,15.94,145.49,145.44,15.94]
[1719563804442,15.94,145.5,145.44,15.94]
[1719563804634,12.40791659,145.49,145.44,15.94]
[1719563804834,15.94,145.5,145.44,15.94]
[1719563805142,12.40791659,145.49,145.44,15.94]
[1719563805334,15.94,145.5,145.44,15.94]
[1719563805535,12.4079144,145.49,145.44,15.94]
[1719563805744,15.94,145.5,145.44,15.94]
[1719563805942,28.34860365,145.49,145.43,15.94]
[1719563806327,12.40860365,145.48,145.43,15.94]
[1719563806529,28.34860365,145.48,145.42,15.94]
[1719563806946,12.40860365,145.47,145.42,15.94]
[1719563807137,12.40860365,145.47,145.42,22.8165]
[1719563807332,6.0501,145.51,145.42,22.8165]
[1719563807533,15.94,145.48,145.42,22.8165]
[1719563807739,12.40896956,145.47,145.42,22.8165]
[1719563807945,15.94,145.48,145.42,22.8165]
[1719563808249,15.94,145.48,145.43,15.94]
[1719563808769,15.94,145.49,145.43,22.8161]
[1719563809044,15.94,145.51,145.46,15.94]
[1719563809254,15.94,145.51,145.39,77.2312]
[1719563809255,12.40673772,145.5,145.48,15.94]
[1719563809438,15.94,145.53,145.48,15.94]
[1719563809638,12.40579023,145.52,145.48,15.94]
[1719563809839,12.40579023,145.51,145.48,15.94]
[1719563810038,15.94,145.53,145.48,15.94]
[1719563810239,12.40574079,145.52,145.48,15.94]
[1719563810438,12.40574079,145.51,145.48,15.94]
[1719563810750,6.2678,145.55,145.48,15.94]
[1719563810931,15.94,145.53,145.48,15.94]
[1719563811131,12.40541334,145.52,145.48,15.94]
[1719563811853,15.94,145.54,145.48,15.94]
[1719563812057,28.34487614,145.53,145.48,15.94]
[1719563812235,12.40487614,145.52,145.48,15.94]
[1719563812431,15.94,145.53,145.48,15.94]
[1719563812854,12.40441829,145.52,145.48,15.94]
[1719563813060,15.94,145.53,145.45,16.1719]
[1719563813354,12.40508155,145.52,145.47,15.94]
[1719563813532,15.94,145.53,145.47,15.94]
[1719563813731,28.34509144,145.52,145.45,16.1719]
[1719563813963,15.94,145.5,145.42,6.8762]
[1719563814261,100.0,145.54,145.44,15.94]
[1719563814447,15.94,145.5,145.44,15.94]
[1719563814767,15.94,145.5,145.44,22.8155]
[1719563814964,15.94,145.5,145.45,15.94]
[1719563815146,15.94,145.51,145.45,15.94]
[1719563815346,12.40671141,145.5,145.45,15.94]
[1719563815586,15.94,145.51,145.45,15.94]
[1719563815875,12.40712987,145.5,145.45,15.94]
[1719563816100,15.94,145.51,145.45,15.94]
[1719563816259,12.40714798,145.5,145.45,15.94]
[1719563816560,15.94,145.51,145.45,15.94]
[1719563816771,12.40657458,145.5,145.45,15.94]
[1719563816988,15.94,145.51,145.45,15.94]
[1719563817196,12.40650537,145.5,145.45,15.94]
[1719563817361,12.40650537,145.49,145.45,15.94]
[1719563817561,15.94,145.51,145.45,15.94]
[1719563817881,12.40714578,145.5,145.45,15.94]
[1719563818195,15.94,145.51,145.45,15.94]
[1719563819401,15.94,145.51,145.44,6.8755]
[1719563819575,15.94,145.51,145.45,15.94]
[1719563819902,12.40711083,145.5,145.45,15.94]
[1719563820066,15.94,145.51,145.45,15.94]
[1719563821407,12.40600295,145.5,145.45,15.94]
[1719563821695,12.40600295,145.5,145.48,15.94]
[1719563822070,12.40600295,145.5,145.49,15.94]
[1719563822294,7.5277707,145.5,145.49,22.8133]
[1719563822678,270.32055334,145.59,145.51,6.8723]
[1719563822993,15.94,145.59,145.53,15.94]
[1719563823995,12.40050717,145.58,145.53,15.94]
[1719563824294,15.94,145.58,145.53,15.94]
[1719563824798,15.94,145.58,145.48,16.1162]
[1719563825101,28.3409796,145.57,145.52,15.94]
[1719563825266,15.94,145.57,145.52,15.94]
[1719563826575,15.94,145.57,145.48,16.1162]
[1719563826576,15.94,145.57,145.5,6.8728]
[1719563826779,15.94,145.56,145.51,15.94]
[1719563831008,63.76,145.6,145.5,6.8727]
[1719563831178,12.40180741,145.59,145.51,15.94]
[1719563831377,12.40180741,145.58,145.51,15.94]
[1719563831578,63.76,145.6,145.51,15.94]
[1719563831807,12.40191941,145.59,145.51,15.94]
[1719563832010,12.40191941,145.58,145.51,15.94]
[1719563832174,63.76,145.6,145.51,15.94]
[1719563832375,12.40199075,145.59,145.51,15.94]
[1719563832691,12.40199075,145.58,145.51,15.94]
[1719563832995,100.0,145.59,145.48,16.1162]
[1719563833180,15.94,145.54,145.48,32.0562]
[1719563835995,15.94,145.54,145.49,6.8733]
[1719563837208,15.94,145.54,145.49,22.8133]
[1719563840511,15.94,145.54,145.49,6.8733]
[1719563840712,15.94,145.54,145.49,22.8133]
[1719563843098,15.94,145.54,145.5,6.8727]
[1719563843299,15.94,145.55,145.5,6.8727]
[1719563843525,22.1456,145.57,145.51,6.8722]
[1719563843812,28.34305786,145.56,145.51,6.8722]
[1719563844124,22.1456,145.57,145.52,6.8718]
[1719563844327,21.6801,145.61,145.53,15.94]
[1719563844491,15.94,145.59,145.54,6.8706]
[1719563845799,15.94,145.59,145.53,22.8113]
[1719563846307,21.6801,145.61,145.48,16.1162]
[1719563846308,28.33995273,145.58,145.48,16.1162]
[1719563846518,15.94,145.57,145.52,15.94]
[1719563846706,15.94,145.57,145.5,6.8724]
[1719563847103,15.94,145.57,145.52,15.94]
[1719563847527,15.94,145.57,145.51,15.94]
[1719563850311,15.94,145.57,145.51,22.8122]
[1719563850621,15.94,145.57,145.52,22.8118]
[1719563850802,15.94,145.58,145.52,22.8118]
[1719563851429,15.94,145.58,145.53,15.94]
[1719563851807,15.94,145.59,145.53,22.8113]
[1719563852123,21.6801,145.61,145.55,15.94]
[1719563852425,12.39942262,145.6,145.56,15.94]
[1719563852613,15.94,145.62,145.56,15.94]
[1719563852807,12.39909086,145.61,145.56,15.94]
[1719563853009,15.94,145.62,145.56,15.94]
[1719563853226,12.39823839,145.61,145.53,31.0431]
[1719563853425,254.38055334,145.66,145.53,78.8631]
[1719563853628,12.39592874,145.65,145.61,15.94]
[1719563853830,15.5514,145.68,145.62,15.94]
[1719563854027,28.3351536,145.67,145.62,15.94]
[1719563854228,12.3951536,145.66,145.62,15.94]
[1719563854419,15.94,145.67,145.62,15.94]
[1719563854620,254.38055334,145.71,145.6,6.868]
[1719563854621,21.946,145.72,145.63,6.8666]
[1719563854926,28.33347667,145.71,145.65,15.94]
[1719563855130,12.39347667,145.7,145.65,15.94]
[1719563855516,12.39335279,145.69,145.65,15.94]
[1719563855818,15.44,145.71,145.65,15.94]
[1719563856024,12.39327427,145.7,145.65,15.94]
[1719563856234,12.39327427,145.69,145.65,15.94]
[1719563856422,15.44,145.71,145.65,15.94]
[1719563856733,12.39327891,145.7,145.6,53.6396]
[1719563856922,221.946,145.72,145.57,16.6464]
[1719563856923,12.39327891,145.69,145.57,16.6464]
[1719563857116,12.39327891,145.71,145.57,23.5157]
[1719563857623,31.75,145.7,145.57,23.5157]
[1719563857823,212.39327891,145.69,145.56,6.5714]
[1719563858141,12.39327891,145.68,145.56,6.5714]
[1719563858332,12.39327891,145.68,145.56,13.4412]
[1719563858534,12.39594373,145.67,145.56,13.4412]
[1719563858734,12.39594373,145.66,145.56,13.4412]
[1719563858938,12.39594373,145.68,145.56,13.4412]
[1719563859118,12.39611176,145.67,145.56,13.4412]
[1719563859318,12.39611176,145.66,145.56,13.4412]
[1719563859538,12.39611176,145.68,145.56,13.4412]
[1719563859737,12.39611176,145.67,145.56,13.4412]
[1719563859919,100.0,145.69,145.57,6.8695]
[1719563860231,12.39596483,145.68,145.57,6.8695]
[1719563860521,12.39596483,145.67,145.57,6.8695]
[1719563860724,100.0,145.69,145.57,6.8695]
[1719563860934,12.3957554,145.68,145.57,6.8695]
[1719563861128,12.3957554,145.67,145.57,6.8695]
[1719563861328,100.0,145.69,145.57,6.8695]
[1719563861530,12.39576528,145.68,145.57,6.8695]
[1719563861730,12.39576747,145.67,145.57,6.8695]
[1719563861935,100.0,145.69,145.57,6.8695]
[1719563862136,12.39576966,145.68,145.57,6.8695]
[1719563862343,12.39576966,145.67,145.57,6.8695]
[1719563862545,31.75,145.7,145.58,6.869]
[1719563862756,12.39546156,145.69,145.58,6.869]
[1719563862927,12.39546156,145.68,145.58,6.869]
[1719563863236,12.39546156,145.67,145.58,6.869]
[1719563863437,31.75,145.7,145.58,6.869]
[1719563863619,12.39546156,145.69,145.58,6.869]
[1719563863825,12.39546156,145.68,145.58,6.869]
[1719563864046,12.39546156,145.67,145.58,6.869]
[1719563864246,31.75,145.7,145.58,6.869]
[1719563864434,112.39544729,145.69,145.56,6.5714]
[1719563864636,12.39544729,145.68,145.56,6.5714]
[1719563864831,200.0,145.69,145.56,13.4413]
[1719563865031,12.39604048,145.68,145.56,13.4413]
[1719563865240,12.39604048,145.67,145.56,13.4413]
[1719563865432,12.39604048,145.66,145.56,13.4413]
[1719563865628,231.75,145.67,145.56,6.5714]
[1719563865947,6.2146,145.65,145.55,6.8703]
[1719563867422,6.2146,145.65,145.54,16.6464]
[1719563867627,12.39742021,145.64,145.54,23.5169]
[1719563867838,6.2146,145.65,145.55,6.8703]
[1719563868847,12.39741802,145.64,145.55,6.8703]
[1719563869036,6.2146,145.65,145.55,6.8703]
[1719563869232,12.39742021,145.64,145.55,6.8703]
[1719563869436,6.2146,145.65,145.55,6.8703]
[1719563869637,12.39758152,145.64,145.55,6.8703]
[1719563869833,6.2146,145.65,145.54,23.5172]
[1719563870044,12.39756726,145.64,145.54,23.5172]
[1719563870344,6.2146,145.65,145.54,23.5172]
[1719563870545,12.39756945,145.64,145.54,23.5172]
[1719563870754,6.2146,145.65,145.54,23.5172]
[1719563870937,12.39756726,145.64,145.54,23.5172]
[1719563871251,6.2146,145.65,145.54,23.5172]
[1719563871546,12.39752336,145.64,145.54,23.5172]
[1719563871726,6.2146,145.65,145.54,23.5172]
[1719563871927,12.3975267,145.64,145.54,23.5172]
[1719563872126,6.2146,145.65,145.54,23.5172]
[1719563872334,12.39751023,145.64,145.55,6.8704]
[1719563872630,6.2146,145.65,145.55,6.8704]
[1719563872832,12.39765062,145.64,145.55,6.8704]
[1719563873051,6.2146,145.65,145.55,6.8704]
[1719563873226,12.39765062,145.64,145.55,6.8704]
[1719563873421,6.2146,145.65,145.55,6.8704]
[1719563873649,12.39757933,145.64,145.55,6.8704]
[1719563873839,6.2146,145.65,145.55,6.8704]
[1719563874153,12.39751427,145.64,145.55,6.8704]
[1719563874356,6.2146,145.65,145.55,6.8704]
[1719563874658,12.39750804,145.64,145.55,6.8704]
[1719563874838,6.2146,145.65,145.55,6.8704]
[1719563875139,12.39757933,145.64,145.55,6.8704]
[1719563875447,6.2146,145.65,145.55,6.8704]
[1719563875649,12.39758152,145.64,145.56,6.8698]
[1719563875950,6.2146,145.65,145.56,6.8698]
[1719563876246,31.75,145.67,145.54,16.6464]
[1719563876547,12.39560553,145.66,145.57,6.8694]
[1719563876749,369.65395334,145.69,145.57,6.8694]
[1719563877048,12.39585747,145.68,145.57,6.8694]
[1719563877251,12.39585747,145.67,145.57,6.8694]
[1719563877546,12.39585747,145.66,145.57,6.8694]
[1719563877742,12.39585747,145.68,145.57,6.8694]
[1719563877951,12.39585747,145.67,145.57,6.8694]
[1719563878124,12.39585747,145.66,145.57,6.8694]
[1719563878326,269.65395334,145.69,145.57,6.8694]
[1719563878524,12.39565568,145.68,145.57,6.8694]
[1719563878723,15.89,145.65,145.59,15.89]
[1719563880840,15.89,145.64,145.59,15.89]
[1719563881856,15.89,145.64,145.58,15.89]
[1719563882544,15.89,145.64,145.59,15.89]
[1719563883334,269.65395334,145.69,145.58,6.0869]
[1719563883534,15.89,145.66,145.6,32.2462]
[1719563885046,269.65395334,145.69,145.6,32.2462]
[1719563885337,12.39494979,145.68,145.61,15.89]
[1719563885539,15.89,145.66,145.61,15.89]
[1719563885753,269.65395334,145.69,145.61,15.89]
[1719563885943,15.89,145.66,145.61,15.89]
[1719563889470,15.89,145.69,145.64,15.89]
[1719563889765,12.39348084,145.68,145.64,15.89]
[1719563889980,12.39348284,145.67,145.64,15.89]
[1719563890135,39.46065068,145.73,145.6,32.2462]
[1719563890136,24.35305068,145.73,145.63,22.0553]
[1719563890350,12.39340939,145.72,145.64,16.5729]
[1719563890543,15.89,145.7,145.64,32.4629]